Workbook

Sheet Planilha1
A1: 1.1 Placa Indicativa de Obra
D2: CODEVASF | G2: JR ENGENHARIA
A3: INSUMOS | D3: QUANT | E3: PREÇO UNIT | F3: CUSTO HORÁRIO | G3: QUANT | H3: PREÇO UNIT | I3: CUSTO HORÁRIO
A5: 1213 | B5: CARPINTEIRO DE FORMAS | D5: 0.7 | E5: 15.54 | F5: =D5*E5 -> 10.878 | G5: 0.7 | H5: 15.54 | I5: =G5*H5 -> 10.878
A6: 6111 | B6: SERVENTE DE OBRAS | D6: 0.7 | E6: 10.95 | F6: =D6*E6 -> 7.665 | G6: 0.7 | H6: 10.95 | I6: =G6*H6 -> 7.665
A7: 4417 | B7: SARRAFO DE MADEIRA NAO APARELHADA *2,5 X 7* CM, MACARANDUBA, ANGELIM OU EQUIVALENTE DA REGIAO | D7: 1 | E7: 3.36 | F7: 3.36 | G7: 0.7637108 | H7: 3.36 | I7: 2.566068288
A8: 4491 | B8: PONTALETE *7,5 X 7,5* CM EM PINUS, MISTA OU EQUIVALENTE DA REGIAO - BRUTA | D8: 3.6 | E8: 4.35 | F8: 15.66 | G8: 2.7493591 | H8: 4.35 | I8: 11.95971208
A9: 4813 | B9: PLACA DE OBRA (PARA CONSTRUCAO CIVIL) EM CHAPA GALVANIZADA *N. 22*, ADESIVADA, DE *2,0 X 1,125* M | D9: 1 | E9: 227.76 | F9: 227.76 | G9: 0.7637108 | H9: 227.76 | I9: 173.9427718
A10: 5075 | B10: PREGO DE ACO POLIDO COM CABECA 18 X 30 (2 3/4 X 10) | D10: 0.15 | E10: 10.23 | F10: 1.5345 | G10: 0.1145567 | H10: 10.23 | I10: 1.171915041
D11: TOTAL ATIVIDADES: | F11: =SUM(F5:F10) -> 266.8575 | G11: TOTAL ATIVIDADES: | I11: =SUM(I5:I10) -> 208.1834672
A13: 1.4 Barracão de Obras
D14: CODEVASF | G14: JR ENGENHARIA
A15: INSUMOS | D15: QUANT | E15: PREÇO UNIT | F15: CUSTO HORÁRIO | G15: QUANT | H15: PREÇO UNIT | I15: CUSTO HORÁRIO
A17: 1213 | B17: CARPINTEIRO DE FORMAS | D17: 2 | E17: 15.54 | F17: =D17*E17 -> 31.08 | G17: 2 | H17: 15.54 | I17: =G17*H17 -> 31.08
A18: 4750 | B18: PEDREIRO | D18: 1.5 | E18: 15.54 | F18: =D18*E18 -> 23.31 | G18: 1.5 | H18: 15.54 | I18: =G18*H18 -> 23.31
A19: 6111 | B19: SERVENTE | D19: 1.12 | E19: 10.95 | F19: 12.264 | G19: 1.12 | H19: 10.95 | I19: 12.264
A20: 6189 | B20: TABUA DE MADEIRA NAO APARELHADA *2,5 X 30* CM, CEDRINHO OU EQUIVALENTE DA REGIAO | D20: 2 | E20: 12.18 | F20: 24.36 | G20: 1.9074959 | H20: 9.71 | I20: 18.52178519
A21: 35274 | B21: PILAR DE MADEIRA NAO APARELHADA *10 X 10* CM, MACARANDUBA, ANGELIM OU EQUIVALENTE DA REGIAO | D21: 2 | E21: 29.77 | F21: 59.54 | G21: 1.9074959 | H21: 23.73 | I21: 45.26487771
A22: 20213 | B22: VIGA DE MADEIRA APARELHADA *6 X 12* CM, MACARANDUBA, ANGELIM OU EQUIVALENTE DA REGIAO | D22: 2 | E22: 16.33 | F22: 32.66 | G22: 1.9074959 | H22: 13.02 | I22: 24.83559662
A23: 7213 | B23: TELHA DE FIBROCIMENTO ONDULADA E = 4 MM, DE 2,44 X 0,50 M (SEM AMIANTO) | D23: 2 | E23: 12.94 | F23: 25.88 | G23: 1.9074959 | H23: 11.78 | I23: 22.4703017
A24: 6212 | B24: TABUA DE MADEIRA NAO APARELHADA *2,5 X 30 CM (1 X 12 ") PINUS, MISTA OU EQUIVALENTE DA REGIAO | D24: 2 | E24: 10.5 | F24: 21 | G24: 1.9074959 | H24: 7.21 | I24: 13.75304544
A25: 4721 | B25: PEDRA BRITADA N. 1 (9,5 a 19 MM) POSTO PEDREIRA/FORNECEDOR, SEM FRETE | D25: 1 | E25: 62.24 | F25: 62.24 | G25: 0.9537479 | H25: 50.8 | I25: 48.45039332
A26: 1379 | B26: CIMENTO PORTLAND COMPOSTO CP II-32 | D26: 30 | E26: 0.54 | F26: 16.2 | G26: 28.6124394 | H26: 0.52 | I26: 14.87846849
A27: 5061 | B27: PREGO DE ACO POLIDO COM CABECA 18 X 27 (2 1/2 X 10) | D27: 1 | E27: 12.25 | F27: 12.25 | G27: 0.9537479 | H27: 10.06 | I27: 9.594703874
A28: 4460 | B28: SARRAFO DE MADEIRA NAO APARELHADA *2,5 X 10 CM, MACARANDUBA, ANGELIM OU EQUIVALENTE DA REGIAO | D28: 5 | E28: 7.32 | F28: 36.6 | G28: 4.7687399 | H28: 5.84 | I28: 27.84944102
A29: 367 | B29: AREIA GROSSA - POSTO JAZIDA/FORNECEDOR (RETIRADO NA JAZIDA, SEM TRANSPORTE) | D29: 1 | E29: 52.5 | F29: 52.5 | G29: 0.9537479 | H29: 39.86 | I29: 38.01639129
A30: 1357 | B30: CHAPA DE MADEIRA COMPENSADA RESINADA PARA FORMA DE CONCRETO, DE *2,2 X 1,1* M, E = 12 MM | D30: 1 | E30: 57.96 | F30: 57.96 | G30: 1.9074959 | H30: 45.45 | I30: 86.69568866
A31: 20247 | B31: PREGO DE ACO POLIDO COM CABECA 15 X 15 (1 1/4 X 13) | D31: 2 | E31: 13.8 | F31: 27.6 | G31: 1.9074959 | H31: 11.33 | I31: 21.61192855
D32: TOTAL ATIVIDADES: | F32: =SUM(F17:F31) -> 495.444 | G32: TOTAL ATIVIDADES: | I32: =SUM(I17:I31) -> 438.5966218
A34: 1.5 Administração Local
D35: CODEVASF | G35: JR ENGENHARIA
A36: INSUMOS | D36: QUANT | E36: PREÇO UNIT | F36: CUSTO HORÁRIO | G36: QUANT | H36: PREÇO UNIT | I36: CUSTO HORÁRIO
A38: 40811 | B38: ENGENHEIRO CIVIL DE OBRA JUNIOR (MENSALISTA) | D38: 0.2 | E38: 15319.67 | F38: =D38*E38 -> 3063.934 | G38: 0.1964276 | H38: 15319.67 | I38: =H38*G38 -> 3009.206011
A39: 40818 | B39: ENCARREGADO GERAL DE OBRAS (MENSALISTA) | D39: 0.200048 | E39: 4511.17 | F39: =E39*D39 -> 902.4505362 | G39: 0.1964276 | H39: 4511.17 | I39: =H39*G39 -> 886.1182963
D40: TOTAL ATIVIDADES: | F40: =SUM(F38:F39) -> 3966.384536 | G40: TOTAL ATIVIDADES: | I40: =SUM(I38:I39) -> 3895.324307
